bitfinex-derivatives/quotes_BTCF0:USTF0_20241224
["timestamp","ask_amount","ask_price","bid_price","bid_amount"]
[1735060078251,0.42505375,98737.0,98735.0,0.00151915]
[1735060079751,0.050692,98718.0,98716.0,0.3016961]
[1735060079947,0.3608,98717.0,98716.0,0.27888319]
[1735060081049,0.3608,98717.0,98716.0,0.28188319]
[1735060081559,0.3608,98717.0,98716.0,0.001]
[1735060081758,0.050693,98716.0,98709.0,0.114]
[1735060082061,0.050697,98709.0,98704.0,0.05221853]
[1735060082259,0.0126211,98705.0,98704.0,0.05221853]
[1735060082454,0.0126211,98706.0,98704.0,0.05221853]
[1735060082650,0.0126211,98705.0,98704.0,0.00151953]
[1735060083050,0.01254016,98705.0,98704.0,0.00151953]
[1735060084065,0.01252718,98705.0,98704.0,0.00151953]
[1735060084860,0.01252718,98705.0,98704.0,0.00351953]
[1735060085059,0.02034997,98705.0,98704.0,0.00351953]
[1735060086366,0.02034997,98705.0,98704.0,0.00251953]
[1735060086663,0.02034997,98705.0,98704.0,0.00351953]
[1735060086963,0.02032709,98705.0,98704.0,0.00251953]
[1735060087165,0.02032709,98705.0,98704.0,0.00351953]
[1735060087358,0.13142043,98705.0,98684.0,0.2313]
[1735060087557,0.01259839,98685.0,98684.0,0.2313]
[1735060087766,0.02032709,98685.0,98684.0,0.2313]
[1735060088962,0.050713,98676.0,98674.0,0.36123376]
[1735060089156,0.050713,98676.0,98674.0,0.08162754]
[1735060089157,0.38112709,98675.0,98674.0,0.08162754]
[1735060089357,0.38112709,98675.0,98662.0,0.00104]
[1735060089658,0.050721,98662.0,98655.0,0.1167]
[1735060089860,0.050722,98660.0,98655.0,0.1167]
[1735060090065,0.0202904,98659.0,98655.0,0.1167]
[1735060090265,0.3608,98656.0,98655.0,0.12653631]
[1735060090465,0.3810904,98656.0,98655.0,0.00983631]
[1735060090666,0.050728,98647.0,98646.0,0.42143939]
[1735060090858,0.4318184,98647.0,98646.0,0.42143939]
[1735060091059,0.4318184,98647.0,98639.0,0.48260502]
[1735060091060,0.3810904,98647.0,98639.0,0.00096]
[1735060091262,0.01257365,98643.0,98634.0,0.1126]
[1735060091561,0.058535,98642.0,98634.0,0.1126]
[1735060091769,0.058535,98642.0,98633.0,0.00096]
[1735060091770,0.3608,98639.0,98633.0,0.00096]
[1735060091964,0.05074,98625.0,98612.0,0.050746]
[1735060092171,0.05074,98625.0,98612.0,0.06057743]
[1735060092172,0.11838427,98622.0,98612.0,0.06057743]
[1735060092364,0.3608,98614.0,98612.0,0.06057743]
[1735060092562,0.00780094,98613.0,98612.0,0.06057743]
[1735060093271,0.00780094,98614.0,98612.0,0.06057743]
[1735060093469,0.3608,98615.0,98612.0,0.06057743]
[1735060093470,0.00780094,98613.0,98612.0,0.06957743]
[1735060093664,0.00780094,98613.0,98612.0,0.07657743]
[1735060093866,0.00780094,98614.0,98612.0,0.07657743]
[1735060094071,0.00880094,98613.0,98612.0,0.07657743]
[1735060094578,0.00880094,98613.0,98612.0,0.065746]
[1735060096270,0.00880094,98613.0,98612.0,0.059746]
[1735060096581,0.00880094,98613.0,98612.0,0.065746]
[1735060098980,0.00877007,98613.0,98612.0,0.065746]
[1735060099385,0.00877127,98613.0,98612.0,0.065746]
[1735060099766,0.001,98613.0,98612.0,0.065746]
[1735060099970,0.00777127,98633.0,98612.0,0.365746]
[1735060100279,0.01243404,98644.0,98643.0,0.05073]
[1735060100477,0.3608,98645.0,98643.0,0.05073]
[1735060100780,0.3608,98645.0,98633.0,0.050736]
[1735060100977,0.3608,98645.0,98634.0,0.050735]
[1735060101169,0.05073,98644.0,98634.0,0.050735]
[1735060101370,0.06316404,98644.0,98634.0,0.050735]
[1735060102176,0.01243404,98644.0,98637.0,0.050733]
[1735060102376,0.3608,98645.0,98626.0,0.3608]
[1735060102377,0.3608,98645.0,98643.0,0.05073]
[1735060102880,0.391404,98657.0,98634.0,0.3608]
[1735060102881,0.01243404,98656.0,98634.0,0.3608]
[1735060103075,0.01243404,98655.0,98650.0,0.050726]
[1735060103284,0.01249253,98655.0,98650.0,0.050726]
[1735060103472,0.02492657,98654.0,98650.0,0.050726]
[1735060103780,0.01243404,98653.0,98650.0,0.050726]
[1735060103971,0.01243404,98652.0,98650.0,0.050726]
[1735060104279,0.01243404,98651.0,98650.0,0.052726]
[1735060104882,0.01236309,98651.0,98650.0,0.052726]
[1735060105384,0.01236309,98651.0,98635.0,0.111]
[1735060105585,0.01252437,98645.0,98635.0,0.111]
[1735060105786,0.01252437,98645.0,98644.0,0.05073]
[1735060105987,0.02488868,98645.0,98644.0,0.05073]
[1735060106585,0.01236431,98645.0,98642.0,0.3608]
[1735060106771,0.01236431,98644.0,98643.0,0.16263]
[1735060106970,0.01236431,98650.0,98649.0,0.050727]
[1735060107382,0.02488868,98650.0,98649.0,0.050727]
[1735060107589,0.02490277,98650.0,98649.0,0.050727]
[1735060108077,0.01236431,98650.0,98649.0,0.050727]
[1735060108380,0.01236026,98650.0,98649.0,0.050727]
[1735060108784,0.02490711,98650.0,98649.0,0.050727]
[1735060108986,0.02490711,98650.0,98649.0,0.051727]
[1735060109182,0.02490711,98650.0,98649.0,0.054727]
[1735060109579,0.01236026,98650.0,98649.0,0.053727]
[1735060109890,0.01236026,98650.0,98649.0,0.050727]
[1735060110285,0.01236026,98650.0,98649.0,0.052727]
[1735060110487,0.01236026,98650.0,98649.0,0.053727]
[1735060110878,0.01234551,98650.0,98649.0,0.057727]
[1735060111373,0.01234551,98650.0,98649.0,0.0676876]
[1735060111681,0.01234551,98650.0,98637.0,0.0096743]
[1735060111873,0.01234551,98649.0,98648.0,0.050728]
[1735060112078,0.01234551,98649.0,98648.0,0.411528]
[1735060112288,0.02006311,98649.0,98648.0,0.411528]
[1735060112782,0.02006849,98649.0,98648.0,0.411528]
[1735060113178,0.02006849,98649.0,98648.0,0.417528]
[1735060113580,0.02006849,98649.0,98648.0,0.411528]
[1735060113780,0.02006849,98649.0,98648.0,0.419528]
[1735060113983,0.02007562,98649.0,98648.0,0.419528]
[1735060115196,0.02007562,98649.0,98648.0,0.413528]
[1735060115384,0.02007562,98649.0,98648.0,0.417528]
[1735060116888,0.3608,98665.0,98648.0,0.3668]
[1735060117091,0.0200992,98664.0,98655.0,0.050724]
[1735060117293,0.0200992,98663.0,98648.0,0.3668]
[1735060117483,0.02010066,98662.0,98648.0,0.3668]
[1735060117686,0.02010066,98661.0,98650.0,0.11838427]
[1735060117893,0.02010066,98660.0,98650.0,0.11838427]
[1735060118094,0.02010066,98659.0,98657.0,0.050723]
[1735060118289,0.02010066,98658.0,98657.0,0.050723]
[1735060119194,0.02010066,98658.0,98657.0,0.051723]
[1735060119394,0.02010066,98658.0,98657.0,0.052723]
[1735060119993,0.3608,98665.0,98658.0,0.050722]
[1735060120192,0.02011727,98664.0,98658.0,0.050722]
[1735060120391,0.02011727,98663.0,98658.0,0.050722]
[1735060120587,0.02011727,98662.0,98658.0,0.050722]
[1735060120787,0.02011727,98661.0,98658.0,0.050722]
[1735060120987,0.02011727,98660.0,98658.0,0.050722]
[1735060121188,0.02011727,98659.0,98658.0,0.050722]
[1735060122885,0.411519,98665.0,98658.0,0.050722]
[1735060123091,0.07082476,98664.0,98650.0,0.11838427]
[1735060123290,0.02010476,98663.0,98653.0,0.050725]
[1735060123498,0.02010476,98662.0,98653.0,0.050725]
[1735060123697,0.02010476,98661.0,98653.0,0.050725]
[1735060123897,0.02010476,98660.0,98653.0,0.050725]
[1735060124201,0.02010476,98659.0,98654.0,0.050724]
[1735060124395,0.02010476,98658.0,98654.0,0.050724]
[1735060124700,0.02010476,98657.0,98654.0,0.050724]
[1735060124899,0.02010476,98656.0,98654.0,0.050724]
[1735060125100,0.02010476,98655.0,98654.0,0.050724]
[1735060125303,0.02010476,98655.0,98654.0,0.052724]
[1735060125694,0.02010476,98655.0,98654.0,0.053724]
[1735060126401,0.3608,98664.0,98654.0,0.003]
[1735060126603,0.0201668,98663.0,98654.0,0.003]
[1735060126804,0.0201668,98662.0,98655.0,0.050724]
[1735060127003,0.0201668,98661.0,98655.0,0.050724]
[1735060127192,0.0201668,98660.0,98655.0,0.050724]
[1735060127388,0.0201668,98659.0,98655.0,0.050724]
[1735060127593,0.0201668,98658.0,98655.0,0.050724]
[1735060127795,0.0201668,98657.0,98654.0,0.003]
[1735060128097,0.0201668,98656.0,98654.0,0.003]
[1735060128298,0.0201668,98655.0,98654.0,0.003]
[1735060128805,0.0201668,98655.0,98653.0,0.050725]
[1735060128999,0.02017998,98654.0,98653.0,0.050725]
[1735060129305,0.02017998,98654.0,98650.0,0.3608]
[1735060129495,0.38097998,98653.0,98630.0,0.22508427]
[1735060129698,0.050727,98650.0,98641.0,0.050731]
[1735060129895,0.02017998,98649.0,98641.0,0.050731]
[1735060130095,0.02017998,98648.0,98641.0,0.03247001]
[1735060130297,0.1128,98652.0,98635.0,0.41235007]
[1735060130298,0.050732,98640.0,98635.0,0.30135007]
[1735060130497,0.13527998,98639.0,98635.0,0.30035007]
[1735060131203,0.13527998,98639.0,98632.0,0.00981194]
[1735060131504,0.13527998,98639.0,98638.0,0.3668]
[1735060131902,0.12271214,98639.0,98638.0,0.3668]
[1735060132205,0.13489157,98639.0,98638.0,0.3608]
[1735060133303,0.13489157,98639.0,98624.0,0.30035007]
[1735060133506,0.41154,98625.0,98624.0,0.30035007]
[1735060133809,0.050743,98619.0,98601.0,0.0096872]
[1735060134013,0.050743,98619.0,98600.0,0.1]
[1735060134014,0.07053457,98619.0,98600.0,0.1]
[1735060135095,0.01979157,98619.0,98600.0,0.1]
[1735060135298,0.47918427,98610.0,98600.0,0.1]
[1735060135504,0.02486598,98609.0,98600.0,0.1]
[1735060135704,0.02486598,98608.0,98600.0,0.1]
[1735060135896,0.02486598,98607.0,98600.0,0.1]
[1735060136099,0.3608,98610.0,98609.0,0.050748]
[1735060136306,0.3608,98622.0,98619.0,0.050743]
[1735060136508,0.3608,98622.0,98621.0,0.050742]
[1735060137803,0.3608,98622.0,98621.0,0.057742]
[1735060138310,0.3608,98622.0,98621.0,0.061742]
[1735060140022,0.3608,98622.0,98621.0,0.011]
[1735060140212,0.3608,98622.0,98615.0,0.050745]
[1735060141516,0.3608,98622.0,98615.0,0.055745]
[1735060142002,0.3608,98622.0,98615.0,0.064745]
[1735060142401,0.3608,98622.0,98615.0,0.014]
[1735060142614,0.3608,98622.0,98620.0,0.050742]
[1735060143915,0.3608,98622.0,98620.0,0.053742]
[1735060144119,0.3618,98622.0,98620.0,0.059742]
[1735060146107,0.01187246,98621.0,98620.0,0.059742]
[1735060146613,0.01187246,98621.0,98620.0,0.009]
[1735060146813,0.01187246,98621.0,98620.0,0.059742]
[1735060147615,1.52278095,98653.0,98620.0,0.01]
[1735060147616,0.3608,98641.0,98620.0,0.01]
[1735060147923,0.3608,98659.0,98650.0,0.050727]
[1735060148222,0.00741454,98651.0,98650.0,0.050727]
[1735060148726,0.12001598,98658.0,98657.0,0.050723]
[1735060149415,0.3608,98663.0,98649.0,0.3608]
[1735060149717,0.3608,98663.0,98641.0,0.1148]
[1735060150112,0.3608,98655.0,98652.0,0.050726]
[1735060150420,0.3608,98655.0,98653.0,0.050725]
[1735060151421,0.3678,98655.0,98653.0,0.050725]
[1735060151815,0.3608,98654.0,98653.0,0.165525]
[1735060152014,0.007,98655.0,98653.0,0.165525]
[1735060152821,0.012,98655.0,98653.0,0.166525]
[1735060155316,0.012,98655.0,98653.0,0.17643886]
[1735060157613,0.01195358,98654.0,98653.0,0.17643886]
[1735060157924,0.012,98655.0,98653.0,0.17643886]
[1735060158125,0.01576657,98656.0,98655.0,0.050724]
[1735060158322,0.23840025,98690.0,98657.0,0.050723]
[1735060158323,0.12999854,98690.0,98657.0,0.050723]
[1735060158622,0.12001598,98690.0,98689.0,0.411507]
[1735060158826,0.3608,98712.0,98699.0,0.050702]
[1735060159011,0.15790904,98700.0,98699.0,0.050702]
[1735060159419,0.006337,98711.0,98699.0,0.050702]
[1735060159623,0.3608,98704.0,98700.0,0.11838427]
[1735060159820,0.3608,98704.0,98699.0,0.050702]
[1735060160020,0.007,98700.0,98699.0,0.051702]
[1735060160218,0.007,98700.0,98699.0,0.001]
[1735060160618,0.00733474,98700.0,98699.0,0.001]
[1735060161023,0.00733478,98700.0,98699.0,0.001]
[1735060161532,0.00733016,98700.0,98699.0,0.001]
[1735060162126,0.01033016,98700.0,98699.0,0.001]
[1735060163426,0.01032188,98700.0,98699.0,0.001]
[1735060163926,0.003,98700.0,98699.0,0.001]
[1735060164124,0.0103231,98700.0,98699.0,0.001]
[1735060167835,0.050703,98696.0,98681.0,0.262011]
[1735060168036,0.3608,98692.0,98681.0,0.262011]
[1735060168332,0.0073231,98691.0,98681.0,0.27187512]
[1735060168634,0.0073231,98690.0,98681.0,0.27187512]
[1735060168934,0.3725056,98692.0,98681.0,0.27187512]
[1735060168935,0.0073231,98689.0,98681.0,0.27187512]
[1735060169135,0.0073231,98688.0,98681.0,0.27187512]
[1735060169434,0.0073231,98687.0,98681.0,0.262011]
[1735060169635,0.0073231,98686.0,98681.0,0.262011]
[1735060169829,0.0073231,98685.0,98681.0,0.262011]
[1735060170044,0.00730421,98684.0,98682.0,0.05071]
[1735060170234,0.00730421,98683.0,98682.0,0.05071]
[1735060170524,0.00730449,98683.0,98682.0,0.05071]
[1735060172137,0.00730449,98683.0,98682.0,0.05171]
[1735060172337,0.00730562,98683.0,98682.0,0.05171]
[1735060172637,0.00730562,98683.0,98682.0,0.05071]
[1735060172828,0.01430562,98683.0,98682.0,0.05171]
[1735060174629,0.02599461,98683.0,98682.0,0.05171]
[1735060176138,0.026006,98683.0,98682.0,0.05171]
[1735060179836,0.022006,98683.0,98682.0,0.05771]
[1735060180437,0.022006,98683.0,98682.0,0.05671]
[1735060181439,0.01907438,98683.0,98682.0,0.01]
[1735060181635,0.01907438,98683.0,98682.0,0.06071]
[1735060182243,0.01907438,98683.0,98682.0,0.05971]
[1735060182432,0.09042869,98706.0,98682.0,0.03689542]
[1735060182632,0.09042869,98706.0,98704.0,0.050699]
[1735060182834,0.3608,98713.0,98705.0,0.11456189]
[1735060183144,0.37097462,98713.0,98705.0,0.11456189]
[1735060184935,0.37097462,98713.0,98705.0,0.06386389]
[1735060185141,0.37597462,98713.0,98706.0,0.154098]
[1735060185345,0.37597462,98713.0,98707.0,0.050697]
[1735060185633,0.37097462,98713.0,98707.0,0.050697]
[1735060186544,0.37097462,98713.0,98712.0,0.050695]
[1735060187240,0.3773106,98713.0,98712.0,0.050695]
[1735060188544,0.37197462,98713.0,98712.0,0.050695]
[1735060190846,0.37197462,98713.0,98712.0,0.06084652]
[1735060191049,0.37097462,98713.0,98712.0,0.06484652]
[1735060191249,0.37097462,98713.0,98712.0,0.06684652]
[1735060191448,0.3608,98713.0,98712.0,0.006]
[1735060191755,0.3608,98713.0,98712.0,0.003]
[1735060191944,0.3608,98713.0,98712.0,0.005]
[1735060192644,0.3618,98713.0,98712.0,0.002]
[1735060193152,0.3618,98713.0,98712.0,0.01221442]
[1735060194252,0.3608,98713.0,98712.0,0.003]
[1735060194547,0.36775453,98713.0,98712.0,0.003]
[1735060194748,0.36775453,98713.0,98712.0,0.001]
[1735060195053,0.36775453,98713.0,98712.0,0.002]
[1735060195255,0.47565453,98713.0,98712.0,0.001]
[1735060195443,0.47565453,98713.0,98712.0,0.002]
[1735060195644,0.47665453,98713.0,98712.0,0.001]
[1735060195954,0.48065453,98713.0,98697.0,0.525703]
[1735060196251,0.00695453,98712.0,98697.0,0.525703]
[1735060196448,0.00695453,98711.0,98697.0,0.525703]
[1735060196645,0.00695453,98710.0,98697.0,0.525703]
[1735060196843,0.00695453,98709.0,98697.0,0.475]
[1735060197044,0.00695453,98708.0,98707.0,0.050698]
[1735060197548,0.00694693,98708.0,98701.0,0.0507]
[1735060197742,0.005,98713.0,98705.0,0.3608]
[1735060197943,0.005,98713.0,98712.0,0.050695]
[1735060198143,0.01095532,98713.0,98712.0,0.050695]
[1735060198348,0.00695532,98713.0,98707.0,0.005]
[1735060198548,0.00695532,98712.0,98707.0,0.005]
[1735060198856,0.00695532,98711.0,98710.0,0.050696]
[1735060199343,0.001,98713.0,98709.0,0.30231456]
[1735060199344,0.001,98713.0,98712.0,0.050695]
[1735060199749,0.00733538,98713.0,98712.0,0.050695]
[1735060200547,0.00633538,98713.0,98712.0,0.050695]
[1735060201344,0.00633538,98713.0,98712.0,0.055695]
[1735060202251,0.00633538,98713.0,98712.0,0.058695]
[1735060202454,0.01577994,98720.0,98719.0,0.050691]
[1735060202653,0.01577994,98720.0,98719.0,0.411491]
[1735060202840,0.00633538,98720.0,98719.0,0.411491]
[1735060203353,0.01577796,98720.0,98719.0,0.411491]
[1735060203756,0.01577796,98725.0,98724.0,0.050689]
[1735060203953,0.00633538,98725.0,98720.0,0.1136]
[1735060204143,0.00633538,98732.0,98720.0,0.1136]
[1735060204451,0.3608,98742.0,98727.0,0.3608]
[1735060204662,0.3608,98742.0,98730.0,0.11838427]
[1735060204952,0.00633454,98741.0,98740.0,0.05068]
[1735060206555,0.002,98742.0,98740.0,0.06088324]
[1735060207356,0.001,98741.0,98740.0,0.06088324]
[1735060207760,0.001,98741.0,98740.0,0.42168324]
[1735060207958,0.01576707,98751.0,98740.0,0.72168324]
[1735060208261,0.01576707,98751.0,98750.0,0.3608]
[1735060208456,0.2199,98789.0,98750.0,0.3608]
[1735060208457,0.01576707,98755.0,98754.0,0.050673]
[1735060209153,0.00633454,98760.0,98758.0,0.050671]
[1735060209454,0.00633454,98759.0,98758.0,0.050671]
[1735060210557,0.00833454,98759.0,98758.0,0.050671]
[1735060210856,0.1394701,98799.0,98787.0,0.050656]
[1735060211047,0.07736719,98805.0,98800.0,0.050649]
[1735060211248,0.07736719,98805.0,98804.0,0.050648]
[1735060211450,0.08477951,98805.0,98804.0,0.050648]
[1735060211753,0.08477951,98805.0,98803.0,0.34256482]
[1735060211951,0.00741232,98804.0,98792.0,0.3608]
[1735060212144,0.006,98799.0,98792.0,0.3608]
[1735060212349,0.3608,98834.0,98798.0,0.3608]
[1735060212558,0.00711895,98833.0,98814.0,0.3608]
[1735060212862,0.050637,98825.0,98814.0,0.3608]
[1735060213052,0.11211895,98824.0,98814.0,0.3608]
[1735060213253,0.00711895,98823.0,98814.0,0.3608]
[1735060213452,0.00711895,98822.0,98814.0,0.3608]
[1735060213660,0.105,98824.0,98814.0,0.3608]
[1735060213661,0.05064,98820.0,98814.0,0.3608]
[1735060213962,0.00711895,98819.0,98814.0,0.3608]
[1735060214162,0.050641,98817.0,98814.0,0.3608]
[1735060214349,0.00711895,98816.0,98814.0,0.3608]
[1735060214549,0.00711895,98815.0,98814.0,0.3608]
[1735060214944,0.00711895,98815.0,98804.0,0.001]
[1735060215149,0.050647,98806.0,98804.0,0.001]
[1735060215348,0.004,98799.0,98790.0,0.11838427]
[1735060215550,0.00711895,98798.0,98790.0,0.11838427]
[1735060215749,0.00711895,98797.0,98790.0,0.11838427]
[1735060215950,0.00711895,98796.0,98791.0,0.3608]
[1735060216150,0.00711895,98795.0,98791.0,0.3608]
[1735060216350,0.00707564,98794.0,98791.0,0.3608]
[1735060216545,0.009,98815.0,98783.0,0.3608]
[1735060216546,0.00707564,98793.0,98783.0,0.3608]
[1735060216749,0.3608,98788.0,98772.0,0.3608]
[1735060216950,0.16904327,98782.0,98772.0,0.3608]
[1735060217145,0.00707499,98781.0,98772.0,0.3608]
[1735060217354,0.00707499,98780.0,98772.0,0.3608]
[1735060217654,0.00707499,98779.0,98772.0,0.3608]
[1735060217859,0.00707499,98778.0,98772.0,0.3608]
[1735060218057,0.00707499,98777.0,98772.0,0.3608]
[1735060218261,0.00707499,98776.0,98772.0,0.3608]
[1735060218465,0.00707499,98775.0,98772.0,0.3608]
[1735060218764,0.00707499,98774.0,98772.0,0.3608]
[1735060218952,0.02273955,98773.0,98772.0,0.3608]
[1735060219464,0.01340692,98773.0,98772.0,0.3608]
[1735060219760,0.01340692,98773.0,98772.0,0.3618]
[1735060219960,0.01340692,98773.0,98772.0,0.001]
[1735060219961,0.00633193,98773.0,98772.0,0.001]
[1735060220161,0.01341631,98773.0,98772.0,0.001]
[1735060220863,0.02475472,98773.0,98772.0,0.001]
[1735060221465,0.02575472,98773.0,98772.0,0.001]
[1735060221763,0.02575472,98773.0,98767.0,0.00151828]
[1735060221966,0.01842279,98772.0,98767.0,0.00151828]
[1735060222151,0.02475472,98771.0,98767.0,0.00151828]
[1735060222359,0.01842279,98770.0,98767.0,0.00151828]
[1735060222576,0.02475472,98769.0,98767.0,0.00151828]
[1735060222760,0.01842279,98768.0,98767.0,0.00151828]
[1735060223065,0.02475472,98768.0,98767.0,0.00151828]
[1735060223359,0.02476495,98768.0,98767.0,0.00151828]
[1735060224863,0.01342155,98768.0,98767.0,0.00151828]
[1735060225760,0.01342155,98768.0,98767.0,0.05218528]
[1735060226058,0.01134655,98788.0,98767.0,0.22361828]
[1735060226263,0.01569188,98772.0,98771.0,0.050665]
[1735060226458,0.01569188,98773.0,98771.0,0.050665]
[1735060226759,0.01569188,98774.0,98773.0,0.050664]
[1735060227454,0.163654,98792.0,98774.0,0.050663]
[1735060227655,0.050658,98785.0,98780.0,0.3608]
[1735060228663,0.23676854,98790.0,98780.0,0.3608]
[1735060228965,0.05066,98781.0,98780.0,0.3608]
[1735060229263,0.41146,98781.0,98775.0,0.18038337]
[1735060229461,0.050657,98776.0,98775.0,0.18038337]
[1735060230766,0.050657,98776.0,98768.0,0.3608]
[1735060231462,0.051657,98776.0,98768.0,0.3608]
[1735060231851,0.054657,98776.0,98768.0,0.3608]
[1735060232052,0.054657,98776.0,98769.0,0.18038337]
[1735060232259,0.3608,98781.0,98769.0,0.18038337]
[1735060232753,0.3608,98781.0,98770.0,0.11838427]
[1735060233257,0.3608,98781.0,98772.0,0.18038337]
[1735060234067,0.00633173,98780.0,98772.0,0.18038337]
[1735060234253,0.00633173,98779.0,98772.0,0.18038337]
[1735060234569,0.00633173,98778.0,98775.0,0.24051116]
[1735060234773,0.00633173,98777.0,98775.0,0.24051116]
[1735060235266,0.00633173,98776.0,98775.0,0.24051116]
[1735060236068,0.00633173,98776.0,98772.0,0.003]
[1735060236268,0.00633173,98775.0,98772.0,0.003]
[1735060236565,0.00633173,98775.0,98774.0,0.050658]
[1735060236768,0.001,98776.0,98774.0,0.050658]
[1735060236967,0.00633169,98775.0,98774.0,0.050658]
[1735060237163,0.3608,98781.0,98774.0,0.050658]
[1735060237367,0.050643,98804.0,98789.0,0.05065]
[1735060237664,0.3608,98801.0,98789.0,0.05065]
[1735060238265,0.3608,98801.0,98787.0,0.3608]
[1735060238456,0.0070639,98800.0,98787.0,0.3608]
[1735060238655,0.0577089,98799.0,98787.0,0.3608]
[1735060238871,0.05065,98790.0,98787.0,0.3608]
[1735060239467,0.0070639,98789.0,98787.0,0.3608]
[1735060239774,0.0070639,98788.0,98787.0,0.3608]
[1735060240870,0.0080639,98788.0,98787.0,0.3608]
[1735060241569,0.0070639,98788.0,98787.0,0.3608]
[1735060241968,0.00706685,98788.0,98787.0,0.3608]
[1735060242270,0.00806685,98788.0,98787.0,0.3608]
[1735060243872,0.00806902,98788.0,98787.0,0.3608]
[1735060244075,0.00706902,98788.0,98787.0,0.3608]
[1735060244371,0.00806902,98788.0,98787.0,0.3608]
[1735060244569,0.001,98788.0,98787.0,0.3608]
[1735060244871,0.00807101,98788.0,98787.0,0.3608]
[1735060245764,0.01440205,98788.0,98787.0,0.3608]
[1735060246671,0.01440205,98788.0,98787.0,0.66292378]
[1735060247676,0.01441423,98788.0,98787.0,0.66292378]
[1735060247973,0.01441423,98788.0,98787.0,0.53975092]
[1735060250876,0.00809539,98788.0,98787.0,0.53975092]
[1735060251172,0.0144263,98788.0,98787.0,0.53975092]
[1735060253376,0.12034024,98814.0,98807.0,0.050646]
[1735060253576,0.12034024,98814.0,98810.0,0.3608]
[1735060253972,0.12034024,98826.0,98811.0,0.2243]
[1735060254174,0.12034024,98826.0,98816.0,0.11838427]
[1735060254375,0.12034024,98826.0,98821.0,0.050639]
[1735060254577,0.12034024,98826.0,98810.0,0.3608]
[1735060254770,0.050638,98824.0,98810.0,0.3608]
[1735060255079,0.006,98814.0,98810.0,0.3618]
[1735060255285,0.006,98814.0,98810.0,0.36981209]
[1735060255474,0.1075,98825.0,98810.0,0.36881209]
[1735060255675,0.050639,98822.0,98821.0,0.001]
[1735060256179,0.1075,98825.0,98821.0,0.001]
[1735060256373,0.050639,98822.0,98821.0,0.001]
[1735060256979,0.050639,98821.0,98804.0,0.3608]
[1735060257287,0.050646,98808.0,98804.0,0.3608]
[1735060257471,1.5,98807.0,98804.0,0.3608]
[1735060257672,0.050646,98808.0,98804.0,0.3608]
[1735060258081,0.050647,98806.0,98804.0,0.3608]
[1735060258573,0.050647,98806.0,98804.0,0.3618]
[1735060260279,0.057647,98806.0,98804.0,0.3618]
[1735060261477,0.058647,98806.0,98804.0,0.3618]
[1735060261684,0.00633011,98805.0,98804.0,0.3618]
[1735060262680,0.00633011,98805.0,98804.0,0.412448]
[1735060262879,0.00733011,98805.0,98804.0,0.412448]
[1735060263577,0.001,98805.0,98804.0,0.411448]
[1735060263769,0.001,98805.0,98804.0,0.412448]
[1735060264177,0.007,98805.0,98804.0,0.412448]
[1735060264781,0.007,98805.0,98804.0,0.42061575]
[1735060265377,0.01206427,98805.0,98804.0,0.41961575]
[1735060266485,0.01106427,98805.0,98804.0,0.75121575]
[1735060266686,0.01206427,98805.0,98804.0,0.75121575]
[1735060266887,0.00806427,98805.0,98804.0,0.75121575]
[1735060267092,0.01206427,98805.0,98804.0,0.75121575]
[1735060267278,0.01206427,98805.0,98804.0,0.41961575]
[1735060267871,0.01207136,98805.0,98804.0,0.41961575]
[1735060268379,0.01577383,98820.0,98804.0,0.71961575]
[1735060268685,0.01577383,98823.0,98819.0,0.3608]
[1735060268875,0.01577383,98826.0,98819.0,0.7216]
[1735060269074,0.00633011,98825.0,98824.0,0.050637]
[1735060270288,0.00733011,98825.0,98819.0,0.7226]
[1735060270588,0.001,98820.0,98819.0,0.77224]
[1735060270794,0.00733011,98820.0,98819.0,0.77224]
[1735060271087,0.00633011,98820.0,98819.0,0.77224]
[1735060271583,0.001,98825.0,98819.0,0.7226]
[1735060271787,0.001,98825.0,98822.0,0.050638]
[1735060271979,0.001,98825.0,98823.0,0.1132]
[1735060272184,0.050628,98842.0,98823.0,0.163838]
[1735060272485,0.050628,98842.0,98831.0,0.3608]
[1735060272486,0.00632819,98841.0,98831.0,0.3608]
[1735060273275,0.00632819,98840.0,98831.0,0.3608]
[1735060273686,0.00632819,98839.0,98831.0,0.3608]
[1735060274088,0.00632819,98838.0,98831.0,0.3608]
[1735060274590,0.00632819,98837.0,98831.0,0.3618]
[1735060275103,0.16420183,98844.0,98831.0,0.36986283]
[1735060275104,0.00632819,98836.0,98831.0,0.36986283]
[1735060275286,0.00632819,98836.0,98831.0,0.37086283]
[1735060275493,0.00632819,98835.0,98831.0,0.37086283]
[1735060275882,0.00632819,98834.0,98831.0,0.36986283]
[1735060276187,0.00632819,98833.0,98831.0,0.37086283]
[1735060276592,0.00632819,98832.0,98831.0,0.37086283]
[1735060277290,0.00632819,98832.0,98831.0,0.36986283]
[1735060277495,0.00632819,98832.0,98831.0,0.37086283]
[1735060277692,0.00632819,98832.0,98831.0,0.42049683]
[1735060277889,0.00632819,98832.0,98831.0,0.37086283]
[1735060278392,0.00632819,98832.0,98831.0,0.3628]
[1735060278593,0.00732819,98832.0,98831.0,0.3628]
[1735060280192,0.01432772,98832.0,98831.0,0.3628]
[1735060280993,0.01432767,98832.0,98831.0,0.3628]
[1735060283792,0.01432767,98832.0,98831.0,0.002]
[1735060283991,0.23762767,98832.0,98831.0,0.002]
[1735060284893,0.23762767,98832.0,98819.0,0.36126304]
[1735060285096,0.050639,98820.0,98819.0,0.36126304]
[1735060285292,0.05763848,98820.0,98819.0,0.36126304]
[1735060285494,0.06396667,98820.0,98819.0,0.36126304]
[1735060285895,0.01332767,98820.0,98808.0,0.3608]
[1735060286099,0.3608,98821.0,98808.0,0.3608]
[1735060286100,0.050644,98812.0,98808.0,0.3608]
[1735060286300,0.00699948,98811.0,98808.0,0.3608]
[1735060286501,0.00699948,98810.0,98808.0,0.3608]
[1735060286695,0.00702592,98809.0,98808.0,0.3608]
[1735060286894,0.01335411,98809.0,98808.0,0.3608]
[1735060288392,0.01435411,98809.0,98808.0,0.3608]
[1735060288700,0.01435411,98809.0,98808.0,0.5847]
[1735060288904,0.002,98811.0,98809.0,0.050645]